fUST/lending_fUST_20251207
["ID","MTS","AMOUNT","RATE_DAILY","PERIOD"]
[396708743,1765098557323,-10000.01,5.302e-05,2]
[396708744,1765098557652,-10000.01,5.302e-05,2]
[396708745,1765098557781,-10000.01,5.302e-05,2]
[396708746,1765098557847,-10000.01,5.302e-05,2]
[396708747,1765098557955,-10000.01,5.302e-05,2]
[396708748,1765098558098,-10000.01,5.302e-05,2]
[396708749,1765098558219,-10000.01,5.302e-05,2]
[396708750,1765098558420,-10000.01,5.302e-05,2]
[396708751,1765098558565,-10000.01,5.302e-05,2]
[396708773,1765098632152,-300.0,5.301e-05,2]
[396708775,1765098632161,-300.0,5.301e-05,2]
[396708776,1765098632171,-300.0,5.301e-05,2]
[396708778,1765098632180,-512.38932218,5.301e-05,2]
[396708780,1765098632191,-687.61067782,5.301e-05,2]
[396708782,1765098632200,-139.25426754,5.301e-05,2]
[396708788,1765098638246,-160.74573246,5.301e-05,2]
[396708789,1765098638256,-5849.66712386,5.302e-05,2]
[396708995,1765098640504,-866.36197072,5.302e-05,2]
[396708997,1765098640517,-900.0,5.302e-05,2]
[396709003,1765098640559,-1131.63761844,5.302e-05,2]
[396709293,1765098643303,-3965.18829825,5.302e-05,2]
[396709295,1765098643315,-4635.43008,5.302e-05,2]
[396709297,1765098643326,-7728.459,5.302e-05,2]
[396709307,1765098643408,-5069.26321036,5.302e-05,2]
[396715950,1765098853584,231.8918958,4.336e-05,2]
[396715962,1765099001800,1392.0,0.000174,60]
[396715963,1765099001825,3000.0,0.000174,60]
[396715964,1765099001850,3000.0,0.000174,60]
[396715965,1765099001874,2608.0,0.000174,60]
[396715967,1765099021289,1217.0,0.00015,30]
[396716043,1765099524092,-173.64931978,5.197e-05,2]
[396716044,1765099526794,-234.38064113,5.197e-05,2]
[396716045,1765099530562,-299.93263803,5.197e-05,2]
[396716048,1765099533459,-220.93230947,5.197e-05,2]
[396716049,1765099535874,-373.65647307,5.197e-05,2]
[396716050,1765099539142,-267.29514942,5.197e-05,2]
[396716051,1765099542306,-214.25074878,5.197e-05,2]
[396716052,1765099545334,-228.47536908,5.197e-05,2]
[396716053,1765099546741,-206.07956658,5.197e-05,2]
[396716055,1765099549989,-300.0,5.197e-05,2]
[396716056,1765099553905,-432.49917161,5.197e-05,2]
[396716057,1765099557455,-383.40567253,5.197e-05,2]
[396716058,1765099562826,-331.07613419,5.197e-05,2]
[396716059,1765099563656,300.0,5.196e-05,2]
[396716060,1765099566077,-169.63592332,5.197e-05,2]
[396716062,1765099567769,-296.72483496,5.197e-05,2]
[396716063,1765099569953,-151.06190433,5.197e-05,2]
[396716064,1765099572732,-176.24101114,5.197e-05,2]
[396716065,1765099576048,-413.49271773,5.197e-05,2]
[396716066,1765099579428,-151.35407933,5.197e-05,2]
[396716067,1765099581020,-151.99883395,5.197e-05,2]
[396716068,1765099582746,-353.75255448,5.197e-05,2]
[396716069,1765099591954,1307.33938111,5.196e-05,2]
[396716070,1765099592005,1307.33938111,5.196e-05,2]
[396716071,1765099592058,1307.33938111,5.196e-05,2]
[396716072,1765099592429,1307.33938111,5.196e-05,2]
[396716073,1765099592862,1307.33938111,5.196e-05,2]
[396716074,1765099593155,1307.33938111,5.196e-05,2]
[396716075,1765099593359,1307.33938111,5.196e-05,2]
[396716076,1765099593484,548.63433223,5.196e-05,2]
[396716077,1765099593509,758.70504888,5.196e-05,2]
[396716078,1765099593606,1307.33938111,5.196e-05,2]
[396716079,1765099593651,1307.33938111,5.196e-05,2]
[396716080,1765099593709,1307.33938111,5.196e-05,2]
[396716081,1765099593774,1307.33938111,5.196e-05,2]
[396716082,1765099593870,1307.33938111,5.196e-05,2]
[396716083,1765099593930,1307.33938111,5.196e-05,2]
[396716084,1765099594194,1307.33938111,5.196e-05,2]
[396716085,1765099594242,89.92928335,5.196e-05,2]
[396716086,1765099594270,1217.41009776,5.196e-05,2]
[396716087,1765099594460,1307.33938111,5.196e-05,2]
[396716088,1765099594528,1307.33938111,5.196e-05,2]
[396716089,1765099598220,500.0,5.196e-05,2]
[396716090,1765099598257,500.0,5.196e-05,2]
[396716091,1765099598287,500.0,5.196e-05,2]
[396716092,1765099598324,611.09387381,5.196e-05,2]
[396716093,1765099598373,500.0,5.196e-05,2]
[396716094,1765099598403,500.0,5.196e-05,2]
[396716095,1765099598452,500.0,5.196e-05,2]
[396716096,1765099598486,500.0,5.196e-05,2]
[396716097,1765099598522,500.0,5.196e-05,2]
[396716098,1765099598579,500.0,5.196e-05,2]
[396716099,1765099598618,500.0,5.196e-05,2]
[396716100,1765099598653,160.48846021,5.196e-05,2]
[396716101,1765099598701,396.338806,5.196e-05,2]
[396716102,1765099598725,103.661194,5.196e-05,2]
[396716103,1765099598761,500.0,5.196e-05,2]
[396716104,1765099598828,500.0,5.196e-05,2]
[396716105,1765099598859,500.0,5.196e-05,2]
[396716106,1765099598911,500.0,5.196e-05,2]
[396716107,1765099598955,500.0,5.196e-05,2]
[396716108,1765099599014,500.0,5.196e-05,2]
[396716109,1765099599046,500.0,5.196e-05,2]
[396716110,1765099599099,644.3619514,5.196e-05,2]
[396716111,1765099599143,500.0,5.196e-05,2]
[396716112,1765099599206,500.0,5.196e-05,2]
[396716113,1765099599263,500.0,5.196e-05,2]
[396716114,1765099599543,500.0,5.196e-05,2]
[396716115,1765099599586,500.0,5.196e-05,2]
[396716116,1765099599626,500.0,5.196e-05,2]
[396716117,1765099599670,500.0,5.196e-05,2]
[396716118,1765099599707,500.0,5.196e-05,2]
[396716119,1765099599769,500.0,5.196e-05,2]
[396716120,1765099599800,500.0,5.196e-05,2]
[396716121,1765099599852,500.0,5.196e-05,2]
[396716122,1765099599919,251.9868546,5.196e-05,2]
[396716123,1765099599943,248.0131454,5.196e-05,2]
[396716124,1765099599982,500.0,5.196e-05,2]
[396716125,1765099600028,500.0,5.196e-05,2]
[396716126,1765099600085,500.0,5.196e-05,2]
[396716127,1765099600125,500.0,5.196e-05,2]
[396716128,1765099600165,500.0,5.196e-05,2]
[396716129,1765099600220,500.0,5.196e-05,2]
[396716130,1765099600260,500.0,5.196e-05,2]
[396716131,1765099600301,500.0,5.196e-05,2]
[396716132,1765099600352,500.0,5.196e-05,2]
[396716133,1765099600401,500.0,5.196e-05,2]
[396716134,1765099600443,500.0,5.196e-05,2]
[396716135,1765099600496,500.0,5.196e-05,2]
[396716136,1765099600546,500.0,5.196e-05,2]
[396716137,1765099600635,500.0,5.196e-05,2]
[396716138,1765099600679,500.0,5.196e-05,2]
[396716139,1765099600723,500.0,5.196e-05,2]
[396716140,1765099600767,500.0,5.196e-05,2]
[396716141,1765099600820,500.0,5.196e-05,2]
[396716142,1765099600871,500.0,5.196e-05,2]
[396716143,1765099600918,251.9968546,5.196e-05,2]
[396716144,1765099600942,248.0031454,5.196e-05,2]
[396716145,1765099600987,500.0,5.196e-05,2]
[396716146,1765099601031,500.0,5.196e-05,2]
[396716147,1765099601092,500.0,5.196e-05,2]
[396716148,1765099601135,500.0,5.196e-05,2]
[396716149,1765099601173,500.0,5.196e-05,2]
[396716150,1765099601219,500.0,5.196e-05,2]
[396716151,1765099601275,500.0,5.196e-05,2]
[396716152,1765099601320,186.44950774,5.196e-05,2]
[396716153,1765099601351,500.0,5.196e-05,2]
[396716154,1765099601386,500.0,5.196e-05,2]
[396716155,1765099601422,500.0,5.196e-05,2]
[396716156,1765099601456,500.0,5.196e-05,2]
[396716157,1765099601495,500.0,5.196e-05,2]
[396716158,1765099601530,500.0,5.196e-05,2]
[396716159,1765099601565,500.0,5.196e-05,2]
[396716160,1765099601603,500.0,5.196e-05,2]
[396716161,1765099601639,500.0,5.196e-05,2]
[396716162,1765099601677,500.0,5.196e-05,2]
[396716163,1765099601713,500.0,5.196e-05,2]
[396716164,1765099601760,500.0,5.196e-05,2]
[396716165,1765099601822,65.55734686,5.196e-05,2]
[396716166,1765099601845,434.44265314,5.196e-05,2]
[396716167,1765099601894,500.0,5.196e-05,2]
[396716168,1765099601929,500.0,5.196e-05,2]
[396716169,1765099601966,500.0,5.196e-05,2]
[396716170,1765099602000,500.0,5.196e-05,2]
[396716171,1765099602953,3941.11297631,5.196e-05,2]
[396716172,1765099603003,3624.45437055,5.196e-05,2]
[396716173,1765099603029,316.65860576,5.196e-05,2]
[396716174,1765099603082,3941.11297631,5.196e-05,2]
[396716175,1765099603329,3941.11297631,5.196e-05,2]
[396716176,1765099603376,1801.12544162,5.196e-05,2]
[396716177,1765099603407,2139.98753469,5.196e-05,2]
[396716178,1765099603483,3941.11297631,5.196e-05,2]
[396716179,1765099603623,3918.909489,5.196e-05,2]
[396716180,1765099603648,22.20348731,5.196e-05,2]
[396716181,1765099603682,3941.11297631,5.196e-05,2]
[396716182,1765099603988,3941.11297631,5.196e-05,2]
[396716185,1765099614010,2095.58056007,5.196e-05,2]
[396716186,1765099618221,-666.06423816,5.196e-05,2]
[396716187,1765099618252,-2761.64479823,5.196e-05,2]
[396716188,1765099618283,-382.94712899,5.196e-05,2]
[396716189,1765099618324,-2378.69766924,5.196e-05,2]
[396716190,1765099618356,-2480.96986329,5.196e-05,2]
[396716193,1765099627755,-300.0,5.195e-05,2]
[396716194,1765099627784,-300.0,5.195e-05,2]
[396716195,1765099627816,-280.67493494,5.196e-05,2]
[396716196,1765099627848,-2761.64479823,5.196e-05,2]
[396716197,1765099627991,-2761.64479823,5.196e-05,2]
[396716198,1765099628024,-1715.07560531,5.196e-05,2]
[396716199,1765099628112,-1046.56919292,5.196e-05,2]
[396716200,1765099628146,-2761.64479823,5.196e-05,2]
[396716201,1765099628178,-500.0,5.196e-05,2]
[396716202,1765099628871,500.0,5.196e-05,2]
[396716203,1765099628938,500.0,5.196e-05,2]
[396716204,1765099628995,383.5820177,5.196e-05,2]
[396716205,1765099629078,-116.4179823,5.196e-05,2]
[396716206,1765099629106,-500.0,5.196e-05,2]
[396716207,1765099629134,-500.0,5.196e-05,2]
[396716208,1765099629224,500.0,5.196e-05,2]
[396716209,1765099629289,500.0,5.196e-05,2]
[396716210,1765099629324,500.0,5.196e-05,2]
[396716211,1765099629364,500.0,5.196e-05,2]
[396716212,1765099629396,500.0,5.196e-05,2]
[396716213,1765099629452,500.0,5.196e-05,2]
[396716214,1765099629490,500.0,5.196e-05,2]
[396716215,1765099629523,500.0,5.196e-05,2]
[396716216,1765099629573,600.0,5.196e-05,2]
[396716217,1765099629603,500.0,5.196e-05,2]
[396716218,1765099654126,2667.1740354,5.196e-05,2]
[396716219,1765099654153,309.24156222,5.196e-05,2]
[396716220,1765099658588,500.0,5.196e-05,2]
[396716221,1765099658637,500.0,5.196e-05,2]
[396716222,1765099658696,500.0,5.196e-05,2]
[396716223,1765099658773,373.25473013,5.196e-05,2]
[396716224,1765099671984,500.0,5.196e-05,2]
[396716225,1765099679861,1200.0,5.196e-05,2]
[396716226,1765099680984,500.0,5.196e-05,2]
[396716227,1765099681042,500.0,5.196e-05,2]
[396716228,1765099681137,500.0,5.196e-05,2]
[396716229,1765099681204,300.0,5.196e-05,2]
[396716230,1765099682420,300.0,5.196e-05,2]
[396716247,1765099702387,532.40106057,5.196e-05,2]
[396716249,1765099705407,361.77768754,5.196e-05,2]
[396716260,1765099715790,500.0,5.196e-05,2]
[396716261,1765099715846,500.0,5.196e-05,2]
[396716262,1765099715913,500.0,5.196e-05,2]
[396716263,1765099715964,500.0,5.196e-05,2]
[396716264,1765099716016,324.60055108,5.196e-05,2]
[396716273,1765099720935,500.0,5.196e-05,2]
[396716274,1765099720989,298.73440846,5.196e-05,2]
[396716275,1765099721011,201.26559154,5.196e-05,2]
[396716285,1765099728430,500.0,5.196e-05,2]
[396716286,1765099728487,500.0,5.196e-05,2]
[396716287,1765099728538,318.46281951,5.196e-05,2]
[396716288,1765099738114,413.08570494,5.196e-05,2]
[396716289,1765099742268,300.0,5.196e-05,2]
[396716295,1765099802197,300.0,5.196e-05,2]
[396716296,1765099802896,300.0,5.196e-05,2]
[396716297,1765099803307,300.0,5.196e-05,2]
[396716298,1765099805816,300.0,5.196e-05,2]
[396716299,1765099809298,1200.0,5.196e-05,2]
[396716315,1765099832358,-426660.99151387,5.197e-05,2]
[396716316,1765099832370,-2600.0,5.197e-05,2]
[396716317,1765099832381,-2750.0,5.197e-05,2]
[396716348,1765099838481,-728.6184897,5.197e-05,2]
[396716593,1765099841056,-3e-08,5.197e-05,2]
[396717813,1765099852998,500.0,5.196e-05,2]
[396717819,1765099853055,500.0,5.196e-05,2]
[396718480,1765099862584,300.0,5.196e-05,2]
[396724217,1765099922344,300.0,5.196e-05,2]
[396726871,1765099981212,1200.0,5.196e-05,2]
[396726875,1765099995533,500.0,5.196e-05,2]
[396726876,1765100042903,300.0,5.196e-05,2]
[396726894,1765100102183,162.0,5.196e-05,2]
[396726895,1765100102222,300.0,5.196e-05,2]
[396726896,1765100104637,300.0,5.196e-05,2]
[396726897,1765100108770,1005.19588401,5.196e-05,2]
[396726898,1765100108792,194.80411599,5.196e-05,2]
[396726900,1765100112690,2230.315306,5.194e-05,2]
[396726902,1765100122688,500.0,5.196e-05,2]
[396726906,1765100162379,300.0,5.196e-05,2]
[396726916,1765100222360,300.0,5.196e-05,2]
[396726923,1765100234690,2000.0,0.00013,6]
[396726959,1765100281308,1200.0,5.196e-05,2]
[396726960,1765100282520,300.0,5.196e-05,2]
[396726961,1765100343810,2000.0,5.18e-06,2]
[396726977,1765100598797,312.42120622,0.00014219,30]
[396726978,1765100598968,312.42120622,0.00014301,30]
[396726979,1765100599141,312.42120622,0.00014356,30]
[396726980,1765100599359,312.42120622,0.00014438,30]
[396726981,1765100599516,312.42120622,0.00014493,30]
[396726982,1765100599736,312.42120622,0.00014575,30]
[396726983,1765100599922,312.42120622,0.0001463,30]
[396726984,1765100600073,312.42120622,0.00014712,30]
[396726985,1765100600245,312.42120622,0.00014767,30]
[396726986,1765100600421,312.42120622,0.00014849,30]
[396726987,1765100600595,312.42120622,0.00014904,30]
[396726988,1765100600877,312.42120622,0.00014986,30]
[396726992,1765100730506,170.41156705,0.00014411,30]
[396726993,1765100730695,170.41156705,0.00014603,30]
[396726996,1765100766088,150.0,0.00012201,30]
[396726997,1765100766648,150.0,0.00012782,30]
[396726998,1765100767195,224.59,0.00013363,30]
[396726999,1765100767410,299.45,0.00013944,30]
[396727000,1765100767813,374.32,0.00014525,30]
[396727001,1765100768213,449.18,0.00015106,30]
[396727002,1765100799343,189.9607007,4.287e-05,2]
[396727007,1765100846084,250.0,5.054e-05,2]
[396727055,1765100937904,3901.3416561,4.235e-05,2]
[396727159,1765101031861,-250.0,5.196e-05,2]
[396727160,1765101031870,-300.0,5.199e-05,2]
[396727161,1765101031879,-300.0,5.199e-05,2]
[396727162,1765101031889,-1200.0,5.199e-05,2]
[396727163,1765101031898,-500.0,5.2e-05,2]
[396727164,1765101031907,-500.0,5.2e-05,2]
[396727165,1765101031916,-500.0,5.2e-05,2]
[396727166,1765101031926,-500.0,5.2e-05,2]
[396727167,1765101031935,-500.0,5.2e-05,2]
[396727168,1765101031945,-168.62407573,5.2e-05,2]
[396727169,1765101031954,-500.0,5.2e-05,2]
[396727170,1765101031963,-500.0,5.2e-05,2]
[396727171,1765101031973,-500.0,5.2e-05,2]
[396727172,1765101031983,-308.30603883,5.2e-05,2]
[396727173,1765101031995,-191.69396117,5.2e-05,2]
[396727174,1765101032004,-500.0,5.2e-05,2]
[396727175,1765101032013,-316.5044548,5.2e-05,2]
[396727176,1765101032022,-500.0,5.2e-05,2]
[396727177,1765101032031,-311.66334218,5.2e-05,2]
[396727178,1765101032050,-188.33665782,5.2e-05,2]
[396727179,1765101032059,-368.92334218,5.202e-05,2]
[396727180,1765101032071,-465.60265351,5.202e-05,2]
[396727204,1765101037667,-463.97711243,5.199e-05,2]
[396727206,1765101037679,-36.02288757,5.199e-05,2]
[396727208,1765101037688,-263.97711243,5.199e-05,2]
[396727210,1765101037699,-236.02288757,5.199e-05,2]
[396727212,1765101037709,-500.0,5.199e-05,2]
[396727214,1765101037718,-500.0,5.199e-05,2]
[396727215,1765101037727,-500.0,5.199e-05,2]
[396727217,1765101037736,-500.0,5.199e-05,2]
[396727219,1765101037745,-500.0,5.199e-05,2]
[396727221,1765101037754,-500.0,5.199e-05,2]
[396727223,1765101037762,-500.0,5.199e-05,2]
[396727225,1765101037771,-215.40228313,5.199e-05,2]
[396727228,1765101037788,-284.59771687,5.199e-05,2]
[396727230,1765101037798,-203.97764734,5.199e-05,2]
[396727232,1765101037808,-296.02235266,5.199e-05,2]
[396727234,1765101037818,-500.0,5.199e-05,2]
[396727236,1765101037827,-303.40954874,5.199e-05,2]
[396727703,1765101042752,-196.59045126,5.199e-05,2]
[396727705,1765101042762,-399.57397138,5.199e-05,2]
[396727708,1765101042773,-100.42602862,5.199e-05,2]
[396727710,1765101042782,-500.0,5.199e-05,2]
[396727712,1765101042791,-500.0,5.199e-05,2]
[396727714,1765101042801,-350.24911644,5.199e-05,2]
[396727716,1765101042811,-30565.92070281,5.202e-05,2]
[396727718,1765101042820,-2230.315306,5.269e-05,2]
[396727720,1765101042829,-376.44957798,5.269e-05,2]
[396727722,1765101042838,-500.0,5.269e-05,2]
[396727724,1765101042846,-500.0,5.269e-05,2]
[396727726,1765101042856,-500.0,5.269e-05,2]
[396727728,1765101042865,-500.0,5.269e-05,2]
[396727730,1765101042874,-253.39905116,5.269e-05,2]
[396727732,1765101042883,-58026.11437617,5.272e-05,2]
[396727736,1765101042914,-8012.06256,5.272e-05,2]
[396727738,1765101042925,-11468.95755193,5.272e-05,2]
[396727740,1765101042937,-30272.0000006,5.272e-05,2]
[396728002,1765101045681,-4684.67000576,5.272e-05,2]
[396728005,1765101045692,-2281.28905335,5.272e-05,2]
[396728010,1765101045733,-1215.86785834,5.272e-05,2]
[396738366,1765101405677,365.0,0.000211,99]
[396738444,1765101538015,10000.01,5.098e-05,2]
[396738445,1765101538038,10000.01,5.098e-05,2]
[396738446,1765101538060,10000.01,5.098e-05,2]
[396738447,1765101538083,10000.01,5.098e-05,2]
[396738448,1765101538106,6265.15835916,5.098e-05,2]
[396738514,1765101665855,206.86885331,5.095e-05,2]
[396738534,1765101707598,3527.98278753,5.096e-05,2]
[396738535,1765101707623,10000.01,5.096e-05,2]
[396738536,1765101707648,10000.01,5.096e-05,2]
[396738537,1765101707674,10000.01,5.096e-05,2]
[396738538,1765101707698,10000.01,5.096e-05,2]
[396738539,1765101707724,10000.01,5.096e-05,2]
[396738540,1765101707750,10000.01,5.096e-05,2]
[396738541,1765101707773,10000.01,5.096e-05,2]
[396738542,1765101707798,10000.01,5.096e-05,2]
[396738543,1765101707822,10000.01,5.096e-05,2]
[396738550,1765101719974,-649.48233362,5.096e-05,2]
[396738553,1765101721892,-208.23776873,5.096e-05,2]
[396738554,1765101723912,-300.0,5.095e-05,2]
[396738555,1765101724407,-241.34626634,5.096e-05,2]
[396738557,1765101726407,-189.66796824,5.096e-05,2]
[396738559,1765101728519,-368.96941892,5.096e-05,2]
[396738560,1765101730620,-264.46573326,5.096e-05,2]
[396738563,1765101733751,-168.39453874,5.096e-05,2]
[396738567,1765101737621,-326.64030813,5.096e-05,2]
[396738573,1765101741386,-330.85865016,5.096e-05,2]
[396738575,1765101746987,-212.70034002,5.096e-05,2]
[396738578,1765101750684,-364.36639284,5.096e-05,2]
[396738580,1765101751916,976.73964891,5.095e-05,2]
[396738581,1765101751960,976.73964891,5.095e-05,2]
[396738582,1765101752007,976.73964891,5.095e-05,2]
[396738583,1765101752111,976.73964891,5.095e-05,2]
[396738584,1765101752603,976.73964891,5.095e-05,2]
[396738585,1765101752857,976.73964891,5.095e-05,2]
[396738586,1765101752949,976.73964891,5.095e-05,2]
[396738587,1765101753037,976.73964891,5.095e-05,2]
[396738588,1765101753111,976.73964891,5.095e-05,2]
[396738589,1765101753207,609.35315981,5.095e-05,2]
[396738590,1765101753233,367.3864891,5.095e-05,2]
[396738591,1765101753322,976.73964891,5.095e-05,2]
[396738592,1765101753419,976.73964891,5.095e-05,2]
[396738593,1765101753472,976.73964891,5.095e-05,2]
[396738594,1765101753518,976.73964891,5.095e-05,2]
[396738595,1765101753592,976.73964891,5.095e-05,2]
[396738596,1765101753652,976.73964891,5.095e-05,2]
[396738597,1765101753821,976.73964891,5.095e-05,2]
[396738598,1765101753868,976.73964891,5.095e-05,2]
[396738599,1765101753913,976.73964891,5.095e-05,2]
[396738600,1765101753963,841.96667071,5.095e-05,2]
[396738601,1765101753985,134.7729782,5.095e-05,2]
[396738602,1765101754075,-238.37703034,5.096e-05,2]
[396738603,1765101754114,976.73964891,5.095e-05,2]
[396738604,1765101754451,976.73964891,5.095e-05,2]
[396738607,1765101757350,-285.62627834,5.096e-05,2]
[396738609,1765101758732,500.0,5.095e-05,2]
[396738610,1765101758775,541.43030602,5.095e-05,2]
[396738611,1765101758857,500.0,5.095e-05,2]
[396738612,1765101758904,-204.29992213,5.096e-05,2]
[396738613,1765101760025,590.7227172,5.095e-05,2]
[396738614,1765101760062,500.0,5.095e-05,2]
[396738615,1765101760148,500.0,5.095e-05,2]
[396738616,1765101761056,-235.93203711,5.096e-05,2]
[396738617,1765101762203,2776.86927181,5.095e-05,2]
[396738618,1765101762234,2776.86927181,5.095e-05,2]
[396738619,1765101762273,2776.86927181,5.095e-05,2]
[396738620,1765101762303,78.67946737,5.095e-05,2]
[396738621,1765101762330,2698.18980444,5.095e-05,2]
[396738622,1765101762382,2776.86927181,5.095e-05,2]
[396738623,1765101762428,2776.86927181,5.095e-05,2]
[396738624,1765101762553,1748.08165194,5.095e-05,2]
[396738625,1765101762576,1028.78761987,5.095e-05,2]
[396738626,1765101762606,2776.86927181,5.095e-05,2]
[396738628,1765101763009,2776.86927181,5.095e-05,2]
[396738629,1765101763055,2776.86927181,5.095e-05,2]
[396738630,1765101763104,640.6145647,5.095e-05,2]
[396738631,1765101763129,2136.25470711,5.095e-05,2]
[396738632,1765101763202,-215.22290777,5.096e-05,2]
[396738634,1765101765208,2776.86927181,5.095e-05,2]
[396738635,1765101765267,-328.25952993,5.096e-05,2]
[396738637,1765101767695,-329.1040965,5.096e-05,2]
[396738638,1765101768699,-252.03217876,5.096e-05,2]
[396738641,1765101770133,-247.96782124,5.096e-05,2]
[396738642,1765101770820,235.93203711,5.095e-05,2]
[396738644,1765101772172,-165.72456091,5.096e-05,2]
[396738645,1765101772656,4850.95398397,5.095e-05,2]
[396738646,1765101772679,6150.56313271,5.095e-05,2]
[396738647,1765101772726,3849.44686729,5.095e-05,2]
[396738648,1765101772748,7152.07024939,5.095e-05,2]
[396738649,1765101772798,2847.93975061,5.095e-05,2]
[396738650,1765101772821,8153.57736607,5.095e-05,2]
[396738664,1765101777074,-309.33909961,5.096e-05,2]
[396738665,1765101777607,518.64415908,5.095e-05,2]
[396738668,1765101780906,1200.0,5.095e-05,2]
[396738669,1765101781661,-394.66991705,5.096e-05,2]
[396738670,1765101782337,127.78847485,5.095e-05,2]
[396738671,1765101782363,172.21152515,5.095e-05,2]
[396738673,1765101783785,-309.91290048,5.096e-05,2]
[396738675,1765101786487,-170.93,5.096e-05,2]
[396738679,1765101789722,-553.15850894,5.096e-05,2]
[396738681,1765101793464,-231.14574503,5.096e-05,2]
[396738687,1765101797477,-270.88781243,5.096e-05,2]
[396738690,1765101799039,-576.1154945,5.096e-05,2]
[396738692,1765101802307,-284.77709223,5.096e-05,2]
[396738695,1765101806292,-395.70016584,5.096e-05,2]
[396738697,1765101809251,-231.8385755,5.096e-05,2]
[396738698,1765101809543,500.0,5.095e-05,2]
[396738699,1765101809577,298.40180863,5.095e-05,2]
[396738700,1765101811906,375.98368718,5.095e-05,2]
[396738701,1765101813046,-212.72328153,5.096e-05,2]
[396738703,1765101815717,-274.75222852,5.096e-05,2]
[396738705,1765101817787,-154.99,5.096e-05,2]
[396738707,1765101820762,-305.87958325,5.096e-05,2]
[396738708,1765101821561,168.13510331,5.095e-05,2]
[396738709,1765101822473,-194.12041675,5.096e-05,2]
[396738712,1765101824556,-155.67299573,5.096e-05,2]
[396738713,1765101826515,-275.72310828,5.096e-05,2]
[396738714,1765101827157,186.0151283,5.095e-05,2]
[396738716,1765101828612,-426.47833192,5.096e-05,2]
[396738717,1765101830143,-206.24418184,5.096e-05,2]
[396738719,1765101831653,-192.97650903,5.096e-05,2]
[396738721,1765101833796,-152.63293767,5.096e-05,2]
[396738723,1765101836487,-182.04172186,5.096e-05,2]
[396738725,1765101838772,-246.82715909,5.096e-05,2]
[396738730,1765101842969,300.0,5.095e-05,2]
[396738737,1765101850614,1000.0,0.000211,100]
[396738738,1765101850653,520.93835721,5.095e-05,2]
[396738740,1765101853553,1000.0,0.000211,105]
[396738763,1765101901247,300.0,5.095e-05,2]
[396738768,1765101902651,300.0,5.095e-05,2]
[396738770,1765101905533,162.0,5.095e-05,2]
[396738773,1765101908804,1200.0,5.095e-05,2]
[396738797,1765101962458,300.0,5.095e-05,2]
[396738830,1765102022945,300.0,5.095e-05,2]
[396738883,1765102080465,232.0,5.095e-05,2]
[396738884,1765102082390,300.0,5.095e-05,2]
[396738916,1765102142653,300.0,5.095e-05,2]
[396738917,1765102154448,-388.1672447,5.096e-05,2]
[396738918,1765102156606,-471.82151088,5.096e-05,2]
[396738919,1765102158753,-177.3911276,5.096e-05,2]
[396738920,1765102160287,-174.46935936,5.096e-05,2]
[396738921,1765102162435,-175.6907337,5.096e-05,2]
[396738922,1765102167549,-382.04868251,5.096e-05,2]
[396738924,1765102202753,300.0,5.095e-05,2]
[396738925,1765102207064,449.58403507,5.095e-05,2]
[396738926,1765102209174,1200.0,5.095e-05,2]
[396738927,1765102213645,2134.74035515,5.095e-05,2]
[396738928,1765102213666,95.57495085,5.095e-05,2]
[396738955,1765102231746,-7479.91269359,5.096e-05,2]
[396738969,1765102240530,-3e-08,5.096e-05,2]
[396738970,1765102240541,-10509.83091977,5.096e-05,2]
[396739014,1765102243146,-35360.25897862,5.096e-05,2]
[396739404,1765102247046,-9140.04236098,5.096e-05,2]
[396740978,1765102262993,300.0,5.095e-05,2]
[396744367,1765102299381,571.42823054,5.095e-05,2]
[396746595,1765102322158,334.67868942,5.095e-05,2]
[396746619,1765102322368,300.0,5.095e-05,2]
[396750072,1765102382448,300.0,5.095e-05,2]
[396750076,1765102442796,300.0,5.095e-05,2]
[396750077,1765102501974,262.0,5.095e-05,2]
[396750078,1765102502183,300.0,5.095e-05,2]
[396750079,1765102508802,1200.0,5.095e-05,2]